fUST/lending_fUST_20251125
["ID","MTS","AMOUNT","RATE_DAILY","PERIOD"]
[394841528,1764006638932,-353.36441271,0.00012499,2]
[394841529,1764006638942,-3504.43111579,0.0001292,2]
[394841530,1764006638952,-3500.0,0.0001292,2]
[394841531,1764006638962,-250.0,0.00012973,2]
[394841532,1764006638971,-2007.80848382,0.00012973,2]
[394841533,1764006638982,-250.0,0.00012973,2]
[394841534,1764006638992,-153.35194055,0.00012973,2]
[394841535,1764006639002,-181.08010148,0.00012973,2]
[394841536,1764006639012,-1000.0,0.00012973,2]
[394841537,1764006639022,-1000.0,0.00012973,2]
[394841538,1764006639032,-1000.0,0.00012973,2]
[394841539,1764006639042,-1000.0,0.00012973,2]
[394841540,1764006639052,-1000.0,0.00012973,2]
[394841541,1764006639062,-1005.14270114,0.00012973,2]
[394841542,1764006639073,-250.0,0.00012973,2]
[394841543,1764006639083,-250.0,0.00012973,2]
[394841544,1764006639092,-250.0,0.00012973,2]
[394841545,1764006639102,-250.0,0.00012973,2]
[394841546,1764006639112,-250.0,0.00012973,2]
[394841547,1764006639122,-250.0,0.00012973,2]
[394841548,1764006639133,-250.0,0.00012973,2]
[394841549,1764006639144,-250.0,0.00012973,2]
[394841550,1764006639154,-250.0,0.00012973,2]
[394841551,1764006639164,-250.0,0.00012973,2]
[394841552,1764006639174,-378.84303548,0.00012973,2]
[394841553,1764006639184,-1152.0,0.00012987,2]
[394841554,1764006639194,-1000.0,0.00013112,2]
[394841555,1764006639203,-500.0,0.0001315,2]
[394841556,1764006639213,-263.10538302,0.00013195,2]
[394841557,1764006639226,-500.0,0.00013268,2]
[394841558,1764006639238,-500.0,0.00013404,2]
[394841559,1764006639248,-500.0,0.00013407,2]
[394841560,1764006639258,-740.0,0.00013466,2]
[394841561,1764006639270,-171.0,0.00013467,2]
[394841562,1764006639280,-4000.0,0.00013468,2]
[394841563,1764006639290,-740.0,0.00013505,2]
[394841564,1764006639300,-500.0,0.00013542,2]
[394841565,1764006639311,-740.0,0.0001357,2]
[394841566,1764006639321,-11441.89742121,0.00013598,2]
[394841567,1764006639331,-500.0,0.00013604,2]
[394841568,1764006639340,-740.0,0.00013614,2]
[394841569,1764006639350,-740.0,0.00013617,2]
[394841570,1764006639360,-740.0,0.00013651,2]
[394841571,1764006639371,-500.0,0.00013652,2]
[394841572,1764006639381,-693.5651118,0.00013664,2]
[394841573,1764006639392,-12489.87274167,0.00013664,2]
[394841575,1764006639410,-4219.0542965,0.00013664,2]
[394841577,1764006639422,-386.51,0.00013664,2]
[394842689,1764006818308,150.0,0.00015172,30]
[394842690,1764006818711,150.0,0.00016551,30]
[394842691,1764006909917,2635.0,0.000111,3]
[394842693,1764007013717,759.77525939,8.436e-05,2]
[394842694,1764007022287,151.52,1e-05,2]
[394842695,1764007022337,759.77525939,8.436e-05,2]
[394842696,1764007023424,151.52,1.2e-05,2]
[394842697,1764007023766,151.52,1.4e-05,2]
[394842698,1764007023885,151.52,1.7e-05,2]
[394842699,1764007024117,151.52,1.9e-05,2]
[394842700,1764007024397,151.52,2.1e-05,2]
[394842701,1764007024526,150.0,0.00015124,30]
[394842702,1764007024697,151.52,2.3e-05,2]
[394842703,1764007025127,151.52,2.6e-05,2]
[394842704,1764007025416,151.52,2.8e-05,2]
[394842705,1764007025777,151.52,3e-05,2]
[394842706,1764007026084,151.52,3.2e-05,2]
[394842707,1764007028313,-149.0,0.0002039,120]
[394842708,1764007028348,-798.0,0.000204,120]
[394842709,1764007028384,-479.0,0.000204,120]
[394842710,1764007028416,-287.0,0.000204,120]
[394842711,1764007028455,-174.0,0.000204,120]
[394842712,1764007028491,-172.0,0.000204,120]
[394842713,1764007028527,-173.0,0.000204,120]
[394842714,1764007028563,-523.0,0.00020425,120]
[394842715,1764007028600,-314.0,0.00020425,120]
[394842716,1764007031144,759.77525939,8.436e-05,2]
[394842717,1764007039438,174.53927642,8.478e-05,2]
[394842718,1764007047972,174.53927642,8.478e-05,2]
[394842719,1764007055763,174.53927642,8.478e-05,2]
[394842720,1764007063824,174.53927642,8.478e-05,2]
[394842721,1764007071574,174.53927642,8.478e-05,2]
[394842722,1764007080096,174.53927642,8.478e-05,2]
[394842723,1764007088530,174.53927642,8.478e-05,2]
[394842724,1764007096606,174.53927642,8.478e-05,2]
[394842725,1764007104374,174.53927642,8.478e-05,2]
[394842726,1764007112765,174.53927642,8.478e-05,2]
[394842727,1764007121530,174.53927642,8.478e-05,2]
[394842728,1764007129593,174.53927642,8.478e-05,2]
[394842729,1764007137765,174.53927642,8.478e-05,2]
[394842730,1764007145681,174.53927642,8.478e-05,2]
[394842731,1764007153447,174.53927642,8.478e-05,2]
[394842732,1764007169043,174.53927642,8.478e-05,2]
[394842733,1764007177428,174.53927642,8.478e-05,2]
[394842734,1764007192332,174.53927642,8.478e-05,2]
[394842735,1764007200875,174.53927642,8.478e-05,2]
[394842736,1764007204674,13933.0,0.000111,3]
[394842739,1764007361573,17470.3214445,7.93e-05,2]
[394842740,1764007406811,174.53927642,8.457e-05,2]
[394842741,1764007414926,174.53927642,8.457e-05,2]
[394842742,1764007626615,174.53927642,8.457e-05,2]
[394842743,1764007634786,174.53927642,8.457e-05,2]
[394842744,1764007650283,174.53927642,8.499e-05,2]
[394842745,1764007658054,174.53927642,8.499e-05,2]
[394842746,1764007673610,174.53927642,8.499e-05,2]
[394842747,1764007681347,174.53927642,8.499e-05,2]
[394842748,1764007685655,-174.53927642,8.585e-05,2]
[394842749,1764007685678,-1200.0,8.863e-05,2]
[394842750,1764007685700,-300.0,8.863e-05,2]
[394842751,1764007685722,-300.0,8.864e-05,2]
[394842752,1764007685744,-300.0,8.864e-05,2]
[394842753,1764007685768,-300.0,8.864e-05,2]
[394842754,1764007685790,-1200.0,8.864e-05,2]
[394842755,1764007685812,-395.54651069,8.864e-05,2]
[394842756,1764007685833,-500.0,8.864e-05,2]
[394842757,1764007685856,-555.60893888,8.864e-05,2]
[394842758,1764007685878,-500.0,8.864e-05,2]
[394842759,1764007685900,-500.0,8.864e-05,2]
[394842760,1764007685924,-500.0,8.864e-05,2]
[394842761,1764007685947,-500.0,8.864e-05,2]
[394842762,1764007685970,-500.0,8.864e-05,2]
[394842763,1764007685991,-500.0,8.864e-05,2]
[394842764,1764007686015,-500.0,8.864e-05,2]
[394842765,1764007686037,-500.0,8.864e-05,2]
[394842766,1764007686060,-500.0,8.864e-05,2]
[394842767,1764007686082,-500.0,8.864e-05,2]
[394842768,1764007686104,-500.0,8.864e-05,2]
[394842769,1764007686126,-500.0,8.864e-05,2]
[394842770,1764007686149,-500.0,8.864e-05,2]
[394842771,1764007686171,-605.86803744,8.864e-05,2]
[394842772,1764007686192,-500.0,8.864e-05,2]
[394842773,1764007686213,-500.0,8.864e-05,2]
[394842774,1764007686235,-500.0,8.864e-05,2]
[394842775,1764007686257,-500.0,8.864e-05,2]
[394842776,1764007686283,-2150.79975247,8.864e-05,2]
[394842777,1764007686308,-2150.79975247,8.864e-05,2]
[394842778,1764007686334,-2150.79975247,8.864e-05,2]
[394842779,1764007686360,-2150.79975247,8.864e-05,2]
[394842780,1764007686579,-2150.79975247,8.864e-05,2]
[394842781,1764007686609,-2150.79975247,8.864e-05,2]
[394842782,1764007686638,-2150.79975247,8.864e-05,2]
[394842783,1764007686670,-2150.79975247,8.864e-05,2]
[394842784,1764007686697,-2150.79975247,8.864e-05,2]
[394842785,1764007686723,-2150.79975247,8.864e-05,2]
[394842786,1764007686749,-2150.79975247,8.864e-05,2]
[394842787,1764007686775,-2150.79975247,8.864e-05,2]
[394842788,1764007686801,-2150.79975247,8.864e-05,2]
[394842789,1764007686827,-2150.79975247,8.864e-05,2]
[394842790,1764007686853,-2150.79975247,8.864e-05,2]
[394842791,1764007686879,-2150.79975247,8.864e-05,2]
[394842792,1764007686905,-2150.79975247,8.864e-05,2]
[394842793,1764007686931,-2150.79975247,8.864e-05,2]
[394842794,1764007686957,-2150.79975247,8.864e-05,2]
[394842795,1764007686983,-2150.79975247,8.864e-05,2]
[394842796,1764007687009,-2150.79975247,8.864e-05,2]
[394842797,1764007687036,-2150.79975247,8.864e-05,2]
[394842798,1764007687062,-2150.79975247,8.864e-05,2]
[394842799,1764007687087,-2150.79975247,8.864e-05,2]
[394842800,1764007687113,-2150.79975247,8.864e-05,2]
[394842801,1764007687139,-2150.79975247,8.864e-05,2]
[394842802,1764007687164,-2150.79975247,8.864e-05,2]
[394842803,1764007687190,-2150.79975247,8.864e-05,2]
[394842804,1764007687214,-2150.79975247,8.864e-05,2]
[394842805,1764007687240,-2150.79975247,8.864e-05,2]
[394842806,1764007687266,-2150.79975247,8.864e-05,2]
[394842807,1764007687292,-2150.79975247,8.864e-05,2]
[394842808,1764007687319,-2150.79975247,8.864e-05,2]
[394842809,1764007687346,-2150.79975247,8.864e-05,2]
[394842810,1764007687373,-2150.79975247,8.864e-05,2]
[394842811,1764007687398,-2150.79975247,8.864e-05,2]
[394842812,1764007687424,-2150.79975247,8.864e-05,2]
[394842813,1764007687450,-2150.79975247,8.864e-05,2]
[394842814,1764007687476,-2150.79975247,8.864e-05,2]
[394842815,1764007687503,-1787.24689024,8.864e-05,2]
[394842817,1764007761052,-300.0,8.687e-05,2]
[394842818,1764007761077,-17009.09962475,8.688e-05,2]
[394842819,1764007761100,-500.0,8.775e-05,2]
[394842820,1764007761122,-276.88255748,8.775e-05,2]
[394842821,1764007761145,-500.0,8.775e-05,2]
[394842822,1764007761167,-438.92625722,8.775e-05,2]
[394842823,1764007761193,-1185.28491263,8.775e-05,2]
[394842824,1764007761219,-1185.28491263,8.775e-05,2]
[394842825,1764007761241,-500.0,8.775e-05,2]
[394842826,1764007761262,-400.65200416,8.775e-05,2]
[394842827,1764007761288,-1185.28491263,8.775e-05,2]
[394842828,1764007761314,-1185.28491263,8.775e-05,2]
[394842829,1764007761344,-1185.28491263,8.775e-05,2]
[394842830,1764007761369,-1185.28491263,8.775e-05,2]
[394842831,1764007761394,-1185.28491263,8.775e-05,2]
[394842832,1764007761418,-1185.28491263,8.775e-05,2]
[394842833,1764007761443,-1185.28491263,8.775e-05,2]
[394842834,1764007761468,-1185.28491263,8.775e-05,2]
[394842835,1764007761493,-1185.28491263,8.775e-05,2]
[394842836,1764007761517,-1185.28491263,8.775e-05,2]
[394842837,1764007761542,-1185.28491263,8.775e-05,2]
[394842838,1764007761566,-1185.28491263,8.775e-05,2]
[394842839,1764007761593,-1185.28491263,8.775e-05,2]
[394842840,1764007761620,-1185.28491263,8.775e-05,2]
[394842841,1764007761647,-1185.28491263,8.775e-05,2]
[394842842,1764007761672,-1185.28491263,8.775e-05,2]
[394842843,1764007761698,-1185.28491263,8.775e-05,2]
[394842844,1764007761723,-1185.28491263,8.775e-05,2]
[394842845,1764007761747,-1185.28491263,8.775e-05,2]
[394842846,1764007761773,-1185.28491263,8.775e-05,2]
[394842847,1764007761797,-1185.28491263,8.775e-05,2]
[394842848,1764007761824,-1185.28491263,8.775e-05,2]
[394842849,1764007761849,-1185.28491263,8.775e-05,2]
[394842850,1764007761876,-1185.28491263,8.775e-05,2]
[394842851,1764007761902,-1185.28491263,8.775e-05,2]
[394842852,1764007761928,-1185.28491263,8.775e-05,2]
[394842853,1764007761952,-1185.28491263,8.775e-05,2]
[394842854,1764007761976,-1185.28491263,8.775e-05,2]
[394842855,1764007762000,-1185.28491263,8.775e-05,2]
[394842856,1764007762025,-1185.28491263,8.775e-05,2]
[394842857,1764007762050,-1185.28491263,8.775e-05,2]
[394842858,1764007762076,-1185.28491263,8.775e-05,2]
[394842859,1764007762101,-1185.28491263,8.775e-05,2]
[394842860,1764007762126,-1185.28491263,8.775e-05,2]
[394842861,1764007762152,-1185.28491263,8.775e-05,2]
[394842862,1764007762179,-1185.28491263,8.775e-05,2]
[394842863,1764007762204,-1185.28491263,8.775e-05,2]
[394842864,1764007762228,-1185.28491263,8.775e-05,2]
[394842865,1764007762253,-1185.28491263,8.775e-05,2]
[394842866,1764007762278,-1185.28491263,8.775e-05,2]
[394842867,1764007762303,-1185.28491263,8.775e-05,2]
[394842868,1764007762329,-1185.28491263,8.775e-05,2]
[394842869,1764007762354,-1185.28491263,8.775e-05,2]
[394842870,1764007762379,-1185.28491263,8.775e-05,2]
[394842871,1764007762403,-1185.28491263,8.775e-05,2]
[394842872,1764007762431,-1185.28491263,8.775e-05,2]
[394842873,1764007762458,-1185.28491263,8.775e-05,2]
[394842874,1764007762484,-1185.28491263,8.775e-05,2]
[394842875,1764007762509,-1185.28491263,8.775e-05,2]
[394842876,1764007762537,-1185.28491263,8.775e-05,2]
[394842877,1764007762563,-1185.28491263,8.775e-05,2]
[394842878,1764007762596,-1185.28491263,8.775e-05,2]
[394842879,1764007762623,-1185.28491263,8.775e-05,2]
[394842880,1764007762649,-1185.28491263,8.775e-05,2]
[394842881,1764007762676,-1472.85052564,8.775e-05,2]
[394842882,1764007762702,-1472.85052564,8.775e-05,2]
[394842883,1764007762727,-1472.85052564,8.775e-05,2]
[394842884,1764007762753,-1472.85052564,8.775e-05,2]
[394842885,1764007762779,-1472.85052564,8.775e-05,2]
[394842886,1764007762806,-1472.85052564,8.775e-05,2]
[394842887,1764007762835,-1472.85052564,8.775e-05,2]
[394842888,1764007762861,-1472.85052564,8.775e-05,2]
[394842889,1764007762887,-1472.85052564,8.775e-05,2]
[394842890,1764007762913,-1472.85052564,8.775e-05,2]
[394842891,1764007762939,-1472.85052564,8.775e-05,2]
[394842892,1764007763140,-1472.85052564,8.775e-05,2]
[394842893,1764007763177,-1472.85052564,8.775e-05,2]
[394842894,1764007763213,-1472.85052564,8.775e-05,2]
[394842895,1764007763247,-1472.85052564,8.775e-05,2]
[394842896,1764007763277,-1472.85052564,8.775e-05,2]
[394842897,1764007763307,-1472.85052564,8.775e-05,2]
[394842898,1764007763338,-1472.85052564,8.775e-05,2]
[394842899,1764007763370,-1472.85052564,8.775e-05,2]
[394842900,1764007763399,-1472.85052564,8.775e-05,2]
[394842901,1764007763428,-1472.85052564,8.775e-05,2]
[394842902,1764007763459,-1472.85052564,8.775e-05,2]
[394842903,1764007763487,-1472.85052564,8.775e-05,2]
[394842904,1764007763515,-1472.85052564,8.775e-05,2]
[394842905,1764007763544,-1472.85052564,8.775e-05,2]
[394842906,1764007763575,-1472.85052564,8.775e-05,2]
[394842907,1764007763608,-1472.85052564,8.775e-05,2]
[394842908,1764007763648,-1472.85052564,8.775e-05,2]
[394842909,1764007763680,-1472.85052564,8.775e-05,2]
[394842910,1764007763706,-59770.44899864,8.776e-05,2]
[394842911,1764007763731,-11215.37020691,8.865e-05,2]
[394842956,1764007832991,-414.0,8.952e-05,2]
[394842957,1764007833001,-300.0,9.046e-05,2]
[394842958,1764007833011,-300.0,9.046e-05,2]
[394842959,1764007833021,-217.0,9.046e-05,2]
[394842960,1764007833031,-300.0,9.046e-05,2]
[394842961,1764007833041,-1200.0,9.046e-05,2]
[394842962,1764007833050,-600.0,9.047e-05,2]
[394842963,1764007833059,-300.0,9.047e-05,2]
[394842964,1764007833070,-300.0,9.047e-05,2]
[394842965,1764007833079,-300.0,9.047e-05,2]
[394842966,1764007833089,-300.0,9.047e-05,2]
[394842967,1764007833100,-300.0,9.047e-05,2]
[394842968,1764007833110,-300.0,9.047e-05,2]
[394842969,1764007833122,-300.0,9.047e-05,2]
[394842970,1764007833134,-300.0,9.047e-05,2]
[394842971,1764007833145,-300.0,9.047e-05,2]
[394842972,1764007833155,-300.0,9.047e-05,2]
[394842973,1764007833165,-300.0,9.047e-05,2]
[394842974,1764007833174,-300.0,9.047e-05,2]
[394842975,1764007833187,-300.0,9.047e-05,2]
[394842976,1764007833196,-300.0,9.047e-05,2]
[394842977,1764007833206,-300.0,9.047e-05,2]
[394842978,1764007833216,-300.0,9.047e-05,2]
[394842979,1764007833225,-300.0,9.047e-05,2]
[394842980,1764007833236,-300.0,9.047e-05,2]
[394842981,1764007833246,-300.0,9.047e-05,2]
[394842982,1764007833256,-300.0,9.047e-05,2]
[394842983,1764007833265,-300.0,9.047e-05,2]
[394842984,1764007833275,-300.0,9.047e-05,2]
[394842985,1764007833285,-300.0,9.047e-05,2]
[394842986,1764007833294,-300.0,9.047e-05,2]
[394842987,1764007833303,-300.0,9.047e-05,2]
[394842988,1764007833312,-300.0,9.047e-05,2]
[394842989,1764007833322,-300.0,9.047e-05,2]
[394842990,1764007833331,-300.0,9.047e-05,2]
[394842991,1764007833340,-300.0,9.047e-05,2]
[394842992,1764007833350,-50000.0,9.047e-05,2]
[394842993,1764007833360,-500.0,9.633e-05,2]
[394842994,1764007833371,-500.0,9.633e-05,2]
[394842995,1764007833381,-500.0,9.633e-05,2]
[394842996,1764007833391,-500.0,9.633e-05,2]
[394842997,1764007833401,-437.44494689,9.799e-05,2]
[394842998,1764007833411,-720.0,9.951e-05,2]
[394842999,1764007833422,-194.72792766,0.0001,2]
[394843000,1764007833437,-193.81779024,0.0001018,2]
[394843001,1764007833447,-500.0,0.0001018,2]
[394843002,1764007833456,-507.24838005,0.0001018,2]
[394843003,1764007833467,-331.65457704,0.00010181,2]
[394843004,1764007833476,-516.3733685,0.00010181,2]
[394843005,1764007833486,-1000.0,0.00010181,2]
[394843006,1764007833495,-500.0,0.00010585,2]
[394843007,1764007833505,-205.95634618,0.00010585,2]
[394843008,1764007833514,-1500.0,0.00010728,2]
[394843009,1764007833524,-185.49421885,0.00010859,2]
[394843010,1764007833533,-864.0,0.00010946,2]
[394843011,1764007833544,-500.0,0.00010958,2]
[394843012,1764007833553,-999.0,0.00010959,2]
[394843013,1764007833562,-500.0,0.00010959,2]
[394843014,1764007833572,-210.51324081,0.00010959,2]
[394843015,1764007833581,-500.0,0.00010959,2]
[394843016,1764007833591,-500.0,0.00010959,2]
[394843017,1764007833600,-500.0,0.00010959,2]
[394843018,1764007833615,-2000.0,0.00011276,2]
[394843019,1764007833624,-261.45075877,0.00011778,2]
[394843020,1764007833635,-2500.0,0.00011824,2]
[394843021,1764007833645,-414.0,0.00011952,2]
[394843022,1764007833655,-1040.73848129,0.00012,2]
[394843023,1764007833665,-1000.0,0.00012041,2]
[394843024,1764007833676,-500.0,0.00012054,2]
[394843025,1764007833687,-3000.0,0.00012372,2]
[394843026,1764007833697,-160.0,0.00012423,2]
[394843027,1764007833708,-237.37341594,0.00012585,2]
[394843028,1764007833718,-13899.05508923,0.000129,2]
[394843029,1764007833728,-263.89469918,0.00012919,2]
[394843030,1764007833737,-3500.0,0.0001292,2]
[394843031,1764007833747,-250.0,0.00012991,2]
[394843032,1764007833757,-229.36118214,0.00012991,2]
[394843033,1764007833766,-194.72792767,0.00012991,2]
[394843034,1764007833776,-153.9300788,0.00012991,2]
[394843035,1764007833785,-2000.0,0.00012991,2]
[394843036,1764007833794,-250.0,0.00012991,2]
[394843037,1764007833804,-250.0,0.00012991,2]
[394843038,1764007833813,-500.0,0.0001315,2]
[394843039,1764007833823,-161.837,0.00013212,2]
[394843040,1764007833833,-1000.0,0.00013245,2]
[394843041,1764007833843,-244.0,0.00013245,2]
[394843042,1764007833853,-500.0,0.00013246,2]
[394843043,1764007833862,-500.0,0.00013259,2]
[394843044,1764007833872,-500.0,0.00013286,2]
[394843045,1764007833882,-519.30830083,0.00013352,2]
[394843046,1764007833892,-151.0,0.000134,2]
[394843047,1764007833902,-500.0,0.00013425,2]
[394843048,1764007833911,-3000.0,0.00013468,2]
[394843049,1764007833921,-10297.70767908,0.00013598,2]
[394843050,1764007833931,-880.86236809,0.00013664,2]
[394843051,1764007833941,-740.0,0.00013664,2]
[394843052,1764007833951,-500.0,0.00013672,2]
[394843053,1764007833960,-500.0,0.00013673,2]
[394843054,1764007833969,-500.0,0.00013673,2]
[394843055,1764007833979,-500.0,0.00013673,2]
[394843056,1764007834172,-501.46867833,0.00013673,2]
[394843057,1764007834186,-386.62062406,0.00013673,2]
[394843058,1764007834196,-500.0,0.00013673,2]
[394843059,1764007834206,-500.0,0.00013673,2]
[394843060,1764007834216,-740.0,0.0001368,2]
[394843061,1764007834225,-500.0,0.00013688,2]
[394843062,1764007834235,-521.57562582,0.00013698,2]
[394843063,1764007834246,-519.63366303,0.00013698,2]
[394843064,1764007834256,-438.06595977,0.00013698,2]
[394843065,1764007834267,-511.64911502,0.00013698,2]
[394843066,1764007834277,-500.0,0.00013698,2]
[394843067,1764007834287,-1140.25,0.00013698,2]
[394843068,1764007834297,-500.0,0.00013698,2]
[394843069,1764007834306,-500.0,0.00013698,2]
[394843070,1764007834316,-500.0,0.00013698,2]
[394843071,1764007834327,-712.52,0.00013698,2]
[394843072,1764007834337,-500.0,0.00013698,2]
[394843073,1764007834347,-632.67,0.00013698,2]
[394843074,1764007834357,-500.0,0.00013698,2]
[394843075,1764007834368,-500.0,0.00013698,2]
[394843076,1764007834378,-528.25672248,0.00013698,2]
[394843077,1764007834392,-500.0,0.00013698,2]
[394843078,1764007834402,-545.82697987,0.00013698,2]
[394843079,1764007834413,-500.0,0.00013698,2]
[394843080,1764007834424,-1201.0,0.00013698,2]
[394843081,1764007834435,-500.0,0.00013698,2]
[394843082,1764007834446,-500.0,0.00013698,2]
[394843083,1764007834455,-500.0,0.00013698,2]
[394843084,1764007834466,-515.4122373,0.00013698,2]
[394843085,1764007834477,-569.90256701,0.00013698,2]
[394843086,1764007834488,-500.0,0.00013698,2]
[394843087,1764007834498,-500.0,0.00013698,2]
[394843088,1764007834507,-517.88993641,0.00013698,2]
[394843089,1764007834518,-1000.0,0.00013698,2]
[394843090,1764007834528,-500.0,0.00013698,2]
[394843091,1764007834537,-382.23736769,0.00013698,2]
[394843092,1764007834547,-500.0,0.00013698,2]
[394843093,1764007834556,-524.61813022,0.00013698,2]
[394843094,1764007834565,-250.77172584,0.00013698,2]
[394843095,1764007834574,-500.0,0.00013698,2]
[394843096,1764007834584,-1943.81,0.00013698,2]
[394843097,1764007834593,-548.29468058,0.00013698,2]
[394843098,1764007834606,-523.27788376,0.00013698,2]
[394843099,1764007834616,-500.0,0.00013698,2]
[394843100,1764007834625,-500.0,0.00013698,2]
[394843101,1764007834636,-510.93030399,0.00013698,2]
[394843102,1764007834647,-500.0,0.00013698,2]
[394843103,1764007834658,-500.0,0.00013698,2]
[394843104,1764007834668,-425.79741215,0.00013698,2]
[394843105,1764007834678,-618.09,0.00013698,2]
[394843106,1764007834689,-500.0,0.00013698,2]
[394843107,1764007834698,-463.75179694,0.00013698,2]
[394843108,1764007834708,-244.01080606,0.00013698,2]
[394843109,1764007834718,-500.0,0.00013698,2]
[394843110,1764007834727,-500.0,0.00013698,2]
[394843111,1764007834737,-415.2393876,0.00013698,2]
[394843112,1764007834746,-998.98,0.00013698,2]
[394843113,1764007834756,-450.78343265,0.00013698,2]
[394843114,1764007834766,-500.0,0.00013698,2]
[394843115,1764007834775,-411.50009257,0.00013698,2]
[394843116,1764007834785,-500.0,0.00013698,2]
[394843117,1764007834795,-2622.88,0.00013698,2]
[394843118,1764007834805,-500.0,0.00013698,2]
[394843119,1764007834815,-227.95102306,0.00013698,2]
[394843120,1764007834824,-500.0,0.00013698,2]
[394843121,1764007834834,-2140.98,0.00013698,2]
[394843122,1764007834844,-500.0,0.00013698,2]
[394843123,1764007834853,-500.0,0.00013698,2]
[394843124,1764007834863,-202.12175667,0.00013698,2]
[394843125,1764007834872,-500.0,0.00013698,2]
[394843126,1764007834883,-501.24483604,0.00013698,2]
[394843127,1764007834892,-500.0,0.00013698,2]
[394843128,1764007834902,-543.05756756,0.00013698,2]
[394843129,1764007834912,-572.22441475,0.00013698,2]
[394843130,1764007834921,-500.0,0.00013698,2]
[394843131,1764007834931,-533.53840031,0.00013698,2]
[394843132,1764007834941,-500.0,0.00013698,2]
[394843133,1764007834952,-500.0,0.00013698,2]
[394843134,1764007834961,-506.17044732,0.00013698,2]
[394843135,1764007834971,-500.0,0.00013698,2]
[394843136,1764007834981,-500.0,0.00013698,2]
[394843137,1764007834990,-1822.92,0.00013698,2]
[394843138,1764007835001,-509.87670609,0.00013698,2]
[394843139,1764007835010,-500.0,0.00013698,2]
[394843140,1764007835020,-508.53775743,0.00013698,2]
[394843141,1764007835029,-516.43320386,0.00013698,2]
[394843142,1764007835038,-1263.13,0.00013698,2]
[394843143,1764007835047,-498.65645145,0.00013698,2]
[394843144,1764007835056,-500.0,0.00013698,2]
[394843145,1764007835065,-1639.1,0.00013698,2]
[394843146,1764007835077,-280.63526375,0.00013698,2]
[394843147,1764007835086,-546.86908695,0.00013698,2]
[394843148,1764007835096,-500.0,0.00013698,2]
[394843149,1764007835105,-552.75043448,0.00013698,2]
[394843150,1764007835114,-499.37084706,0.00013698,2]
[394843151,1764007835123,-399.14278017,0.00013698,2]
[394843152,1764007835133,-500.0,0.00013698,2]
[394843153,1764007835143,-500.0,0.00013698,2]
[394843154,1764007835152,-547.52297696,0.00013698,2]
[394843155,1764007835162,-500.0,0.00013698,2]
[394843156,1764007835172,-500.0,0.00013698,2]
[394843157,1764007835181,-482.10554491,0.00013698,2]
[394843158,1764007835191,-555.17531991,0.00013698,2]
[394843159,1764007835200,-500.0,0.00013698,2]
[394843160,1764007835209,-500.0,0.00013698,2]
[394843161,1764007835219,-500.0,0.00013698,2]
[394843162,1764007835228,-500.0,0.00013698,2]
[394843163,1764007835238,-500.0,0.00013698,2]
[394843164,1764007835247,-500.0,0.00013698,2]
[394843165,1764007835257,-500.0,0.00013698,2]
[394843166,1764007835266,-500.0,0.00013698,2]
[394843167,1764007835276,-348.83573546,0.00013698,2]
[394843168,1764007835286,-374.94915051,0.00013698,2]
[394843169,1764007835295,-627.306822,0.00013698,2]
[394843170,1764007835304,-627.306822,0.00013698,2]
[394843171,1764007835314,-557.64644655,0.00013698,2]
[394843172,1764007835323,-627.306822,0.00013698,2]
[394843173,1764007835333,-627.306822,0.00013698,2]
[394843174,1764007835343,-1300.73,0.00013698,2]
[394843175,1764007835353,-627.306822,0.00013698,2]
[394843176,1764007835363,-627.306822,0.00013698,2]
[394843177,1764007835373,-627.306822,0.00013698,2]
[394843178,1764007835383,-627.306822,0.00013698,2]
[394843179,1764007835393,-627.306822,0.00013698,2]
[394843180,1764007835403,-627.306832,0.00013698,2]
[394843181,1764007835413,-541.97,0.00013698,2]
[394843182,1764007835423,-500.0,0.00013698,2]
[394843183,1764007835433,-500.0,0.00013698,2]
[394843184,1764007835443,-500.0,0.00013698,2]
[394843185,1764007835452,-500.01654384,0.00013698,2]
[394843186,1764007835462,-500.0,0.00013698,2]
[394843187,1764007835471,-500.0,0.00013698,2]
[394843188,1764007835481,-500.0,0.00013698,2]